[Event "Late-Titled-Tuesday-Blitz-September-26-2023"]
[Site "Chess.com"]
[Date "2023.09.26"]
[Round "3"]
[White "melissa_guez"]
[Black "reevecanada"]
[Result "0-1"]
[WhiteElo "2146"]
[BlackElo "2512"]
[TimeControl "180+1"]
[EndTime "14:26:14 PDT"]
[Termination "reevecanada won by resignation"]

1. e4 {[%clk 0:03:00.9]} 1... c5 {[%clk 0:02:58.9]} 2. Nf3 {[%clk 0:02:57.6]}
2... d6 {[%clk 0:02:58.6]} 3. d4 {[%clk 0:02:57.3]} 3... cxd4 {[%clk 0:02:58.5]}
4. Nxd4 {[%clk 0:02:58.2]} 4... Nf6 {[%clk 0:02:58.3]} 5. Nc3 {[%clk 0:02:58.4]}
5... a6 {[%clk 0:02:58.4]} 6. Be2 {[%clk 0:02:56.9]} 6... e5 {[%clk 0:02:57.6]}
7. Nb3 {[%clk 0:02:56.8]} 7... Be6 {[%clk 0:02:56.5]} 8. O-O {[%clk 0:02:56.1]}
8... Be7 {[%clk 0:02:56]} 9. Re1 {[%clk 0:02:56.1]} 9... O-O {[%clk 0:02:55.8]}
10. Bf3 {[%clk 0:02:56.4]} 10... Nc6 {[%clk 0:02:55.2]} 11. Nd5 {[%clk 0:02:56]}
11... Nd7 {[%clk 0:02:52.5]} 12. c3 {[%clk 0:02:40.6]} 12... Bxd5 {[%clk
0:02:51.1]} 13. Qxd5 {[%clk 0:02:35.1]} 13... Nc5 {[%clk 0:02:44.5]} 14. Be3
{[%clk 0:01:55.5]} 14... Ne6 {[%clk 0:02:41.3]} 15. Rad1 {[%clk 0:01:47.4]}
15... Nf4 {[%clk 0:02:20.6]} 16. Qd2 {[%clk 0:01:30.5]} 16... Ne6 {[%clk
0:01:56.9]} 17. Bg4 {[%clk 0:01:18.2]} 17... Qc7 {[%clk 0:01:52.8]} 18. Qd5
{[%clk 0:01:13.1]} 18... Nf4 {[%clk 0:01:49.7]} 19. Qd2 {[%clk 0:01:06.6]} 19...
Ne6 {[%clk 0:01:43.8]} 20. Qd5 {[%clk 0:00:49.6]} 20... Ncd8 {[%clk 0:01:42.7]}
21. g3 {[%clk 0:00:47]} 21... Qc6 {[%clk 0:01:42.3]} 22. f4 {[%clk 0:00:41.1]}
22... Nc7 {[%clk 0:01:41.9]} 23. Qd3 {[%clk 0:00:38.6]} 23... Nde6 {[%clk
0:01:38.7]} 24. h4 {[%clk 0:00:29.4]} 24... exf4 {[%clk 0:01:33.1]} 25. gxf4
{[%clk 0:00:29.3]} 25... Bxh4 {[%clk 0:01:32.2]} 26. Rf1 {[%clk 0:00:29.6]}
26... Nc5 {[%clk 0:01:31.3]} 27. Nxc5 {[%clk 0:00:24.8]} 27... dxc5 {[%clk
0:01:30.9]} 28. Bd7 {[%clk 0:00:15.2]} 28... Qg6+ {[%clk 0:01:27.6]} 29. Kh1
{[%clk 0:00:15.5]} 29... Rfd8 {[%clk 0:01:15.4]} 30. Qe2 {[%clk 0:00:14.1]}
30... Qxe4+ {[%clk 0:01:13.4]} 31. Kh2 {[%clk 0:00:12.7]} 31... Nd5 {[%clk
0:01:12.1]} 32. Bg4 {[%clk 0:00:07.5]} 32... Nxe3 {[%clk 0:01:11.7]} 0-1

[Event "Late-Titled-Tuesday-Blitz-September-26-2023"]
[Site "Chess.com"]
[Date "2023.09.26"]
[Round "3"]
[White "ExchangeAB"]
[Black "Mbneu"]
[Result "0-1"]
[WhiteElo "2407"]
[BlackElo "2259"]
[TimeControl "180+1"]
[EndTime "14:26:26 PDT"]
[Termination "Mbneu won by resignation"]

1. d4 {[%clk 0:03:00.9]} 1... Nf6 {[%clk 0:02:54.3]} 2. Nc3 {[%clk 0:03:01.8]}
2... c5 {[%clk 0:02:53.7]} 3. d5 {[%clk 0:02:59.5]} 3... d6 {[%clk 0:02:52.3]}
4. e4 {[%clk 0:02:59.1]} 4... g6 {[%clk 0:02:52.8]} 5. f4 {[%clk 0:02:57.8]}
5... Bg7 {[%clk 0:02:53]} 6. Bb5+ {[%clk 0:02:58.3]} 6... Bd7 {[%clk 0:02:52.5]}
7. e5 {[%clk 0:02:58.4]} 7... Ng8 {[%clk 0:02:48.5]} 8. Nf3 {[%clk 0:02:57.4]}
8... Bxb5 {[%clk 0:02:46.4]} 9. Nxb5 {[%clk 0:02:58.3]} 9... a6 {[%clk
0:02:46.2]} 10. Nc3 {[%clk 0:02:58.2]} 10... b5 {[%clk 0:02:46.6]} 11. e6 {[%clk
0:02:45.7]} 11... Nh6 {[%clk 0:02:43.8]} 12. f5 {[%clk 0:02:11.1]} 12... O-O
{[%clk 0:02:33.1]} 13. Bxh6 {[%clk 0:02:01.6]} 13... Bxh6 {[%clk 0:02:32.2]} 14.
exf7+ {[%clk 0:02:01.5]} 14... Rxf7 {[%clk 0:02:31.7]} 15. fxg6 {[%clk
0:02:01.7]} 15... hxg6 {[%clk 0:02:31.8]} 16. Qd3 {[%clk 0:01:57]} 16... Kg7
{[%clk 0:02:22.9]} 17. O-O {[%clk 0:01:52.7]} 17... Nd7 {[%clk 0:02:16.9]} 18.
Ne4 {[%clk 0:01:49.9]} 18... Qh8 {[%clk 0:01:53]} 19. Neg5 {[%clk 0:01:42.8]}
19... Bxg5 {[%clk 0:01:45.6]} 20. Nxg5 {[%clk 0:01:43.7]} 20... Ne5 {[%clk
0:01:45.2]} 21. Rxf7+ {[%clk 0:01:10.5]} 21... Nxf7 {[%clk 0:01:36.7]} 22. Ne6+
{[%clk 0:00:43.9]} 22... Kh7 {[%clk 0:01:36.2]} 23. Rf1 {[%clk 0:00:41.6]} 23...
Ne5 {[%clk 0:01:30.3]} 24. Qh3+ {[%clk 0:00:39.7]} 24... Kg8 {[%clk 0:01:27.9]}
25. Qg3 {[%clk 0:00:38.6]} 25... Qh6 {[%clk 0:01:18.3]} 26. h3 {[%clk
0:00:29.3]} 26... a5 {[%clk 0:01:12]} 27. Qf2 {[%clk 0:00:28.9]} 27... a4 {[%clk
0:01:04.8]} 28. Qg3 {[%clk 0:00:28.6]} 28... b4 {[%clk 0:01:03.8]} 29. Rf4
{[%clk 0:00:23.6]} 29... a3 {[%clk 0:01:01.2]} 30. b3 {[%clk 0:00:22.3]} 30...
Rc8 {[%clk 0:00:58]} 31. Rh4 {[%clk 0:00:20.5]} 31... Qc1+ {[%clk 0:00:54]} 32.
Kh2 {[%clk 0:00:21]} 32... Qxc2 {[%clk 0:00:49.4]} 33. Qg5 {[%clk 0:00:21.1]}
33... Nf3+ {[%clk 0:00:45.5]} 0-1

[Event "Late-Titled-Tuesday-Blitz-September-26-2023"]
[Site "Chess.com"]
[Date "2023.09.26"]
[Round "3"]
[White "GoltsevDmitry2000"]
[Black "RIPOL"]
[Result "1-0"]
[WhiteElo "2603"]
[BlackElo "2410"]
[TimeControl "180+1"]
[EndTime "14:26:29 PDT"]
[Termination "GoltsevDmitry2000 won by resignation"]

1. e4 {[%clk 0:02:58.8]} 1... Nf6 {[%clk 0:02:59.2]} 2. e5 {[%clk 0:02:58.6]}
2... Nd5 {[%clk 0:02:58.7]} 3. Nc3 {[%clk 0:02:59]} 3... Nxc3 {[%clk 0:02:58]}
4. bxc3 {[%clk 0:02:59.9]} 4... d6 {[%clk 0:02:57.8]} 5. exd6 {[%clk 0:03:00.6]}
5... cxd6 {[%clk 0:02:57.1]} 6. d4 {[%clk 0:02:59.9]} 6... Qc7 {[%clk
0:02:56.2]} 7. Bd2 {[%clk 0:02:59]} 7... g6 {[%clk 0:02:55.4]} 8. Nf3 {[%clk
0:02:59.4]} 8... Bg7 {[%clk 0:02:55]} 9. Bd3 {[%clk 0:02:58.8]} 9... O-O {[%clk
0:02:54.2]} 10. h4 {[%clk 0:02:58.5]} 10... Bg4 {[%clk 0:02:50.7]} 11. Qc1
{[%clk 0:02:57.4]} 11... Bxf3 {[%clk 0:02:44.3]} 12. gxf3 {[%clk 0:02:57.6]}
12... e5 {[%clk 0:02:43.5]} 13. d5 {[%clk 0:02:54.1]} 13... Nd7 {[%clk
0:02:32.8]} 14. Rb1 {[%clk 0:02:37.2]} 14... Nb6 {[%clk 0:02:30.7]} 15. Qb2
{[%clk 0:02:14.9]} 15... Rac8 {[%clk 0:02:08.5]} 16. h5 {[%clk 0:02:08.9]} 16...
e4 {[%clk 0:01:39.9]} 17. fxe4 {[%clk 0:02:08.1]} 17... Nc4 {[%clk 0:01:27.3]}
18. Qxb7 {[%clk 0:02:00.7]} 18... Nxd2 {[%clk 0:01:25.5]} 19. Qxc7 {[%clk
0:02:00.9]} 19... Rxc7 {[%clk 0:01:25.1]} 20. Kxd2 {[%clk 0:02:00.8]} 20...
Bxc3+ {[%clk 0:01:24.2]} 21. Ke2 {[%clk 0:02:00.2]} 21... Be5 {[%clk 0:01:17.6]}
22. Ke3 {[%clk 0:01:53.6]} 22... g5 {[%clk 0:01:16.6]} 23. Rb5 {[%clk
0:01:49.2]} 23... f6 {[%clk 0:01:12.5]} 24. Rhb1 {[%clk 0:01:45.6]} 24... Kg7
{[%clk 0:01:10]} 25. c4 {[%clk 0:01:14.4]} 25... Bf4+ {[%clk 0:01:08.4]} 26. Kf3
{[%clk 0:01:12.4]} 26... Rff7 {[%clk 0:01:03.1]} 27. Rb8 {[%clk 0:01:10.6]}
27... Rf8 {[%clk 0:01:01.4]} 28. Rxf8 {[%clk 0:01:06.9]} 28... Kxf8 {[%clk
0:01:00.7]} 29. h6 {[%clk 0:01:07.8]} 29... Kf7 {[%clk 0:00:57.8]} 30. Rb8
{[%clk 0:01:06.8]} 30... Kg6 {[%clk 0:00:54.6]} 31. e5+ {[%clk 0:01:06.6]} 31...
Kxh6 {[%clk 0:00:53.8]} 32. e6 {[%clk 0:00:54.6]} 32... Kg7 {[%clk 0:00:51]} 33.
Rd8 {[%clk 0:00:52.2]} 33... Re7 {[%clk 0:00:45.5]} 34. Bf5 {[%clk 0:00:42.2]}
34... h5 {[%clk 0:00:39.7]} 35. c5 {[%clk 0:00:41]} 35... dxc5 {[%clk
0:00:38.7]} 36. d6 {[%clk 0:00:41.4]} 36... Bxd6 {[%clk 0:00:37.3]} 37. Rxd6
{[%clk 0:00:42.3]} 1-0

[Event "Late-Titled-Tuesday-Blitz-September-26-2023"]
[Site "Chess.com"]
[Date "2023.09.26"]
[Round "3"]
[White "DanielNaroditsky"]
[Black "Zaro1309"]
[Result "1-0"]
[WhiteElo "3132"]
[BlackElo "2325"]
[TimeControl "180+1"]
[EndTime "14:26:31 PDT"]
[Termination "DanielNaroditsky won on time"]

1. e4 {[%clk 0:03:00.9]} 1... e6 {[%clk 0:02:56.5]} 2. d4 {[%clk 0:03:01.1]}
2... d5 {[%clk 0:02:57.1]} 3. Nd2 {[%clk 0:03:01.8]} 3... Nf6 {[%clk 0:02:57.2]}
4. e5 {[%clk 0:03:01.3]} 4... Nfd7 {[%clk 0:02:57.7]} 5. Bd3 {[%clk 0:03:02]}
5... c5 {[%clk 0:02:57.9]} 6. c3 {[%clk 0:03:02.9]} 6... Nc6 {[%clk 0:02:58.2]}
7. Ngf3 {[%clk 0:03:03.6]} 7... cxd4 {[%clk 0:02:56.2]} 8. cxd4 {[%clk
0:03:04.5]} 8... f6 {[%clk 0:02:56.8]} 9. exf6 {[%clk 0:02:59.3]} 9... Nxf6
{[%clk 0:02:57.7]} 10. O-O {[%clk 0:02:59.2]} 10... Bd6 {[%clk 0:02:57.9]} 11.
Re1 {[%clk 0:02:59.9]} 11... O-O {[%clk 0:02:57.8]} 12. Nf1 {[%clk 0:03:00.6]}
12... Bd7 {[%clk 0:02:53.1]} 13. Ng3 {[%clk 0:02:57.8]} 13... Qb6 {[%clk
0:02:49.6]} 14. a3 {[%clk 0:02:50.1]} 14... Kh8 {[%clk 0:02:31.6]} 15. Bc2
{[%clk 0:02:47.5]} 15... Ne7 {[%clk 0:01:52.3]} 16. b3 {[%clk 0:02:10]} 16...
Rac8 {[%clk 0:01:24.8]} 17. Bb2 {[%clk 0:02:10.2]} 17... Bf4 {[%clk 0:01:10.6]}
18. a4 {[%clk 0:01:53.1]} 18... a5 {[%clk 0:01:04.2]} 19. Qd3 {[%clk 0:01:46.5]}
19... Be8 {[%clk 0:00:41.6]} 20. Qd1 {[%clk 0:01:29.9]} 20... Bg6 {[%clk
0:00:33]} 21. Bxg6 {[%clk 0:01:30.1]} 21... Nxg6 {[%clk 0:00:33.9]} 22. Ba3
{[%clk 0:01:30.9]} 22... Rfe8 {[%clk 0:00:30.6]} 23. Qd3 {[%clk 0:01:29.8]}
23... Bxg3 {[%clk 0:00:30.3]} 24. hxg3 {[%clk 0:01:29.9]} 24... Ne4 {[%clk
0:00:30.9]} 25. Rac1 {[%clk 0:01:24.8]} 25... Kg8 {[%clk 0:00:20]} 26. Qe3
{[%clk 0:01:10.5]} 26... Qa6 {[%clk 0:00:16.9]} 27. Nd2 {[%clk 0:01:08.7]} 27...
Rxc1 {[%clk 0:00:13.1]} 28. Rxc1 {[%clk 0:01:08.8]} 28... Nxd2 {[%clk 0:00:14]}
29. Qxd2 {[%clk 0:01:09.6]} 29... b5 {[%clk 0:00:09]} 30. Qe2 {[%clk 0:01:06.9]}
30... Rc8 {[%clk 0:00:07.7]} 31. Rxc8+ {[%clk 0:01:03.1]} 31... Qxc8 {[%clk
0:00:08.6]} 32. axb5 {[%clk 0:01:03.8]} 32... Nf8 {[%clk 0:00:06.5]} 33. b6
{[%clk 0:01:02.5]} 33... Kf7 {[%clk 0:00:04.6]} 34. Qf3+ {[%clk 0:01:01.2]}
34... Kg8 {[%clk 0:00:03.7]} 35. Qxf8+ {[%clk 0:01:00.5]} 1-0

[Event "Late-Titled-Tuesday-Blitz-September-26-2023"]
[Site "Chess.com"]
[Date "2023.09.26"]
[Round "3"]
[White "AlexPapasimakopoulos"]
[Black "Fan_Of_Chucky"]
[Result "0-1"]
[WhiteElo "2706"]
[BlackElo "2490"]
[TimeControl "180+1"]
[EndTime "14:26:32 PDT"]
[Termination "Fan_Of_Chucky won by resignation"]

1. d4 {[%clk 0:03:00.9]} 1... Nf6 {[%clk 0:02:47.3]} 2. c4 {[%clk 0:03:01.1]}
2... c5 {[%clk 0:02:47.3]} 3. d5 {[%clk 0:03:00.2]} 3... b5 {[%clk 0:02:46.6]}
4. Nf3 {[%clk 0:03:00.6]} 4... b4 {[%clk 0:02:45.5]} 5. b3 {[%clk 0:02:59.5]}
5... g6 {[%clk 0:02:41.6]} 6. Bb2 {[%clk 0:02:59.7]} 6... Bg7 {[%clk 0:02:42.5]}
7. Qc2 {[%clk 0:02:59.4]} 7... d6 {[%clk 0:02:41.7]} 8. Nbd2 {[%clk 0:02:59.4]}
8... O-O {[%clk 0:02:31.8]} 9. h3 {[%clk 0:02:57.1]} 9... e5 {[%clk 0:02:31.4]}
10. dxe6 {[%clk 0:02:55.8]} 10... fxe6 {[%clk 0:02:30.8]} 11. e3 {[%clk
0:02:55.1]} 11... Bb7 {[%clk 0:02:28.4]} 12. Be2 {[%clk 0:02:54.9]} 12... Nbd7
{[%clk 0:02:20.6]} 13. O-O {[%clk 0:02:53.7]} 13... Qe7 {[%clk 0:02:17.8]} 14.
Rad1 {[%clk 0:02:47.2]} 14... a5 {[%clk 0:02:14]} 15. Ng5 {[%clk 0:02:47.1]}
15... a4 {[%clk 0:02:06.6]} 16. Qb1 {[%clk 0:02:39.5]} 16... d5 {[%clk 0:01:56]}
17. Ngf3 {[%clk 0:02:22.6]} 17... Nb6 {[%clk 0:01:40.7]} 18. Rfe1 {[%clk
0:02:07.5]} 18... dxc4 {[%clk 0:01:34.7]} 19. Nxc4 {[%clk 0:02:05.7]} 19... Nxc4
{[%clk 0:01:35.3]} 20. Bxc4 {[%clk 0:02:00.5]} 20... Ne4 {[%clk 0:01:35.5]} 21.
Bxg7 {[%clk 0:01:57.1]} 21... Kxg7 {[%clk 0:01:36.4]} 22. Qb2+ {[%clk 0:01:37]}
22... Nc3 {[%clk 0:01:36.8]} 23. Nd2 {[%clk 0:01:28.5]} 23... Qg5 {[%clk
0:01:31.9]} 24. Bf1 {[%clk 0:01:22.9]} 24... Qf6 {[%clk 0:01:17.1]} 25. Nb1
{[%clk 0:01:15.8]} 25... Nxd1 {[%clk 0:01:09.1]} 26. Qxf6+ {[%clk 0:01:16.5]}
26... Kxf6 {[%clk 0:01:09.3]} 27. Rxd1 {[%clk 0:01:17.4]} 27... Rfd8 {[%clk
0:01:09.7]} 28. Rc1 {[%clk 0:01:17.2]} 28... axb3 {[%clk 0:01:06.9]} 29. axb3
{[%clk 0:01:18.1]} 29... Ra1 {[%clk 0:01:06.1]} 30. Be2 {[%clk 0:01:17.1]} 30...
Be4 {[%clk 0:00:58.8]} 31. Rxc5 {[%clk 0:01:15.4]} 31... Rxb1+ {[%clk
0:00:57.1]} 32. Kh2 {[%clk 0:01:16]} 32... Rd2 {[%clk 0:00:57.4]} 33. Bc4 {[%clk
0:01:15.2]} 33... Rxf2 {[%clk 0:00:56.7]} 34. Kg3 {[%clk 0:01:15.7]} 34... Rxg2+
{[%clk 0:00:55.6]} 35. Kf4 {[%clk 0:01:16.3]} 35... Bf5 {[%clk 0:00:52.8]} 36.
e4 {[%clk 0:01:15.7]} 36... Bxh3 {[%clk 0:00:51.6]} 37. e5+ {[%clk 0:01:13.2]}
37... Kg7 {[%clk 0:00:49.6]} 38. Rc7+ {[%clk 0:01:13.3]} 38... Kh6 {[%clk
0:00:49.6]} 39. Rb7 {[%clk 0:01:10.9]} 39... Bf5 {[%clk 0:00:46.3]} 40. Rxb4
{[%clk 0:01:09.7]} 40... Rg4+ {[%clk 0:00:46.2]} 41. Ke3 {[%clk 0:01:09.6]}
41... Rxc4 {[%clk 0:00:46.9]} 42. Rxc4 {[%clk 0:01:08.7]} 42... Rxb3+ {[%clk
0:00:47.3]} 43. Kf2 {[%clk 0:01:08.3]} 43... Kg5 {[%clk 0:00:47.3]} 44. Rc1
{[%clk 0:01:07.1]} 44... h5 {[%clk 0:00:47.6]} 45. Rg1+ {[%clk 0:01:06.9]} 45...
Kf4 {[%clk 0:00:48.2]} 46. Rf1 {[%clk 0:01:06.9]} 46... Kxe5 {[%clk 0:00:48.5]}
47. Re1+ {[%clk 0:01:06.9]} 47... Kf6 {[%clk 0:00:49.1]} 48. Re2 {[%clk
0:01:07.3]} 48... Rc3 {[%clk 0:00:49.1]} 49. Re1 {[%clk 0:01:07.1]} 49... Rc2+
{[%clk 0:00:50]} 50. Kg3 {[%clk 0:01:07.5]} 50... g5 {[%clk 0:00:50.3]} 51. Ra1
{[%clk 0:01:06.9]} 51... h4+ {[%clk 0:00:50.8]} 52. Kf3 {[%clk 0:01:07.5]} 52...
g4+ {[%clk 0:00:51.4]} 53. Kf4 {[%clk 0:01:08]} 53... Rf2+ {[%clk 0:00:51.5]}
54. Ke3 {[%clk 0:01:08.4]} 54... Rf3+ {[%clk 0:00:52.4]} 55. Ke2 {[%clk
0:01:09]} 55... h3 {[%clk 0:00:52.9]} 56. Ra8 {[%clk 0:01:08.7]} 56... h2 {[%clk
0:00:52]} 57. Rh8 {[%clk 0:01:09.4]} 57... Rh3 {[%clk 0:00:52.1]} 58. Rf8+
{[%clk 0:01:09.6]} 58... Ke5 {[%clk 0:00:52.1]} 0-1

[Event "Late-Titled-Tuesday-Blitz-September-26-2023"]
[Site "Chess.com"]
[Date "2023.09.26"]
[Round "3"]
[White "ArmanGhevondyanchess"]
[Black "JonasGallasch"]
[Result "1/2-1/2"]
[WhiteElo "2601"]
[BlackElo "2429"]
[TimeControl "180+1"]
[EndTime "14:26:33 PDT"]
[Termination "Game drawn by repetition"]

1. Nf3 {[%clk 0:03:00.9]} 1... Nf6 {[%clk 0:02:57.5]} 2. d4 {[%clk 0:03:01.2]}
2... g6 {[%clk 0:02:57.3]} 3. g3 {[%clk 0:03:01.8]} 3... Bg7 {[%clk 0:02:57.6]}
4. Bg2 {[%clk 0:03:02.7]} 4... O-O {[%clk 0:02:58.1]} 5. O-O {[%clk 0:03:03.6]}
5... d5 {[%clk 0:02:57.7]} 6. b3 {[%clk 0:03:04.3]} 6... c5 {[%clk 0:02:50.6]}
7. Bb2 {[%clk 0:03:05.2]} 7... Ne4 {[%clk 0:02:50.3]} 8. Na3 {[%clk 0:03:03.7]}
8... Nc6 {[%clk 0:02:47.6]} 9. c4 {[%clk 0:03:03.4]} 9... dxc4 {[%clk
0:02:35.8]} 10. Nxc4 {[%clk 0:03:04.3]} 10... cxd4 {[%clk 0:02:33.5]} 11. Nxd4
{[%clk 0:02:53.3]} 11... Bxd4 {[%clk 0:02:32.6]} 12. Bxe4 {[%clk 0:02:50.3]}
12... Bxb2 {[%clk 0:02:31.6]} 13. Nxb2 {[%clk 0:02:51.2]} 13... Bh3 {[%clk
0:02:28]} 14. Qxd8 {[%clk 0:02:49]} 14... Rfxd8 {[%clk 0:02:28.9]} 15. Rfd1
{[%clk 0:02:49.3]} 15... Nd4 {[%clk 0:02:26.3]} 16. Bd3 {[%clk 0:02:49.1]} 16...
Rac8 {[%clk 0:02:22.4]} 17. Rac1 {[%clk 0:02:49.3]} 17... Bg4 {[%clk 0:02:18.2]}
18. f3 {[%clk 0:02:49.1]} 18... Bf5 {[%clk 0:02:06.7]} 19. Kf2 {[%clk 0:02:45]}
19... Bxd3 {[%clk 0:01:58.9]} 20. Nxd3 {[%clk 0:02:44.5]} 20... Nb5 {[%clk
0:01:56.6]} 21. Rxc8 {[%clk 0:02:35.1]} 21... Rxc8 {[%clk 0:01:56.6]} 22. Rc1
{[%clk 0:02:32.6]} 22... Rxc1 {[%clk 0:01:48.2]} 23. Nxc1 {[%clk 0:02:33.5]}
23... Kg7 {[%clk 0:01:47.3]} 24. a4 {[%clk 0:02:34]} 24... Nd4 {[%clk
0:01:45.4]} 25. e3 {[%clk 0:02:33.9]} 25... Nc6 {[%clk 0:01:40]} 26. Ke2 {[%clk
0:02:30]} 26... Kf6 {[%clk 0:01:38.1]} 27. e4 {[%clk 0:02:28.9]} 27... Nb4
{[%clk 0:01:27.1]} 28. Nd3 {[%clk 0:02:24.7]} 28... Nxd3 {[%clk 0:01:24.3]} 29.
Kxd3 {[%clk 0:02:25.6]} 29... Ke5 {[%clk 0:01:24.8]} 30. f4+ {[%clk 0:02:25.9]}
30... Kd6 {[%clk 0:01:24.8]} 31. Kd4 {[%clk 0:02:21]} 31... Kc6 {[%clk
0:00:54.2]} 32. b4 {[%clk 0:02:20.2]} 32... Kd6 {[%clk 0:00:54.1]} 33. g4 {[%clk
0:02:15.3]} 33... h6 {[%clk 0:00:49.2]} 34. e5+ {[%clk 0:02:15.1]} 34... Kc6
{[%clk 0:00:44.7]} 35. h4 {[%clk 0:01:58.3]} 35... e6 {[%clk 0:00:41.4]} 36. Kc4
{[%clk 0:01:50]} 36... b6 {[%clk 0:00:26.8]} 37. a5 {[%clk 0:01:44.9]} 37...
bxa5 {[%clk 0:00:10.5]} 38. bxa5 {[%clk 0:01:45.8]} 38... h5 {[%clk 0:00:11.1]}
39. gxh5 {[%clk 0:01:28]} 39... gxh5 {[%clk 0:00:12]} 40. Kb4 {[%clk 0:01:27.7]}
40... a6 {[%clk 0:00:04.1]} 41. Kc4 {[%clk 0:01:28]} 41... Kb7 {[%clk
0:00:04.5]} 42. Kd4 {[%clk 0:01:26.4]} 42... Kc6 {[%clk 0:00:04.1]} 43. Kc4
{[%clk 0:01:26.7]} 43... Kb7 {[%clk 0:00:04.7]} 44. Kc5 {[%clk 0:01:23]} 44...
Kc7 {[%clk 0:00:05.1]} 45. Kd4 {[%clk 0:01:23.6]} 45... Kc6 {[%clk 0:00:05.3]}
46. Kc4 {[%clk 0:01:24.3]} 1/2-1/2

[Event "Late-Titled-Tuesday-Blitz-September-26-2023"]
[Site "Chess.com"]
[Date "2023.09.26"]
[Round "3"]
[White "Maksimus1998"]
[Black "acertijo08"]
[Result "0-1"]
[WhiteElo "2559"]
[BlackElo "2385"]
[TimeControl "180+1"]
[EndTime "14:26:36 PDT"]
[Termination "acertijo08 won by resignation"]

1. d4 {[%clk 0:03:00.9]} 1... Nf6 {[%clk 0:02:58.7]} 2. Nf3 {[%clk 0:02:59.8]}
2... e6 {[%clk 0:02:59.2]} 3. e3 {[%clk 0:02:57.3]} 3... d5 {[%clk 0:02:59.6]}
4. Bd3 {[%clk 0:02:56.4]} 4... c5 {[%clk 0:03:00.1]} 5. c3 {[%clk 0:02:56.3]}
5... Nc6 {[%clk 0:03:00.7]} 6. O-O {[%clk 0:02:55.7]} 6... Be7 {[%clk
0:03:00.5]} 7. Nbd2 {[%clk 0:02:54.9]} 7... O-O {[%clk 0:03:00.3]} 8. dxc5
{[%clk 0:02:54.4]} 8... Bxc5 {[%clk 0:03:00.1]} 9. b4 {[%clk 0:02:53.7]} 9...
Be7 {[%clk 0:02:55.1]} 10. Bb2 {[%clk 0:02:53.1]} 10... e5 {[%clk 0:02:39.7]}
11. e4 {[%clk 0:02:52.3]} 11... d4 {[%clk 0:02:33]} 12. cxd4 {[%clk 0:02:29.2]}
12... Nxb4 {[%clk 0:02:24.8]} 13. Bc4 {[%clk 0:02:29]} 13... exd4 {[%clk
0:02:24.3]} 14. Nxd4 {[%clk 0:02:26.3]} 14... Bg4 {[%clk 0:02:08.6]} 15. Qb3
{[%clk 0:02:22.1]} 15... a5 {[%clk 0:02:03.2]} 16. f3 {[%clk 0:02:18.6]} 16...
a4 {[%clk 0:02:01.8]} 17. Qe3 {[%clk 0:02:09.5]} 17... Bc5 {[%clk 0:01:52.6]}
18. Rfd1 {[%clk 0:01:46.2]} 18... Nc2 {[%clk 0:01:50.4]} 19. Nxc2 {[%clk
0:01:46]} 19... Bxe3+ {[%clk 0:01:50.2]} 20. Nxe3 {[%clk 0:01:46.9]} 20... Qb6
{[%clk 0:01:45.6]} 21. Bxf7+ {[%clk 0:01:40.9]} 21... Rxf7 {[%clk 0:01:41.9]}
22. Nc4 {[%clk 0:01:41.4]} 22... Qc5 {[%clk 0:01:38]} 23. fxg4 {[%clk
0:01:40.2]} 23... Rd7 {[%clk 0:01:24.1]} 24. Bxf6 {[%clk 0:01:36.1]} 24... Rxd1+
{[%clk 0:01:24]} 25. Rxd1 {[%clk 0:01:36.7]} 25... gxf6 {[%clk 0:01:23.9]} 26.
Kf2 {[%clk 0:01:33.2]} 26... b5 {[%clk 0:01:17.1]} 27. Rd5 {[%clk 0:01:27.7]}
27... Qb4 {[%clk 0:01:15.2]} 28. Nb6 {[%clk 0:01:24.6]} 28... Re8 {[%clk
0:01:06.6]} 29. Nd7 {[%clk 0:01:23.9]} 29... Kf7 {[%clk 0:01:01.4]} 30. Rf5
{[%clk 0:01:19.7]} 30... Qxe4 {[%clk 0:00:50.5]} 31. Rxf6+ {[%clk 0:01:15.8]}
31... Ke7 {[%clk 0:00:41]} 32. Nc5 {[%clk 0:01:07.2]} 32... Qxe3+ {[%clk
0:00:25.8]} 33. Kxe3 {[%clk 0:01:06.2]} 33... Kxf6+ {[%clk 0:00:26.3]} 34. Kd4
{[%clk 0:01:06.8]} 34... Re2 {[%clk 0:00:25.1]} 35. a3 {[%clk 0:01:04.8]} 35...
Rxg2 {[%clk 0:00:24.9]} 36. h4 {[%clk 0:01:03.5]} 36... Rxg4+ {[%clk 0:00:24.8]}
37. Kd5 {[%clk 0:01:03.2]} 37... Rxh4 {[%clk 0:00:23.1]} 38. Kc6 {[%clk
0:01:02.8]} 38... Rc4 {[%clk 0:00:22.6]} 39. Kxb5 {[%clk 0:01:01]} 39... Rxc5+
{[%clk 0:00:21.9]} 40. Kxc5 {[%clk 0:01:01.9]} 40... h5 {[%clk 0:00:22.3]} 41.
Kb5 {[%clk 0:01:02.8]} 41... h4 {[%clk 0:00:22.9]} 42. Kxa4 {[%clk 0:01:03.7]}
42... h3 {[%clk 0:00:23.8]} 43. Kb5 {[%clk 0:01:04.5]} 43... h2 {[%clk
0:00:24.7]} 44. a4 {[%clk 0:01:05.4]} 44... h1=Q {[%clk 0:00:25]} 45. a5 {[%clk
0:01:06.3]} 45... Qb7+ {[%clk 0:00:25]} 46. Kc5 {[%clk 0:01:06.2]} 46... Ke6
{[%clk 0:00:25.2]} 0-1